fUSD/lending_fUSD_20250526
["ID","MTS","AMOUNT","RATE_DAILY","PERIOD"]
[362376446,1748229042462,-420.0,0.00019899,2]
[362376447,1748229042475,-499.39446052,0.00019899,2]
[362376448,1748229042488,-420.0,0.00019899,2]
[362376449,1748229042500,-420.0,0.00019899,2]
[362376450,1748229042510,-159.34919675,0.00019899,2]
[362376451,1748229042522,-420.0,0.00019899,2]
[362376452,1748229042534,-220.05671938,0.00019899,2]
[362376453,1748229042545,-420.0,0.00019899,2]
[362376454,1748229042557,-432.50775067,0.00019899,2]
[362376455,1748229042568,-420.0,0.00019899,2]
[362376456,1748229042582,-451.01434155,0.00019899,2]
[362376457,1748229042595,-480.66990121,0.00019899,2]
[362376458,1748229042607,-420.0,0.00019899,2]
[362376459,1748229042619,-420.0,0.00019899,2]
[362376460,1748229042630,-475.79281811,0.00019899,2]
[362376461,1748229042641,-420.0,0.00019899,2]
[362376462,1748229042651,-420.0,0.00019899,2]
[362376463,1748229042662,-465.43347024,0.00019899,2]
[362376464,1748229042674,-350.96131177,0.00019899,2]
[362376465,1748229042685,-335.04927384,0.00019899,2]
[362376466,1748229042700,-125.69278819,0.00019899,2]
[362376467,1748229042712,-420.0,0.00019899,2]
[362376468,1748229042723,-144.31857882,0.00019899,2]
[362376469,1748229042738,-218.60950614,0.00019899,2]
[362376470,1748229042750,-423.26993761,0.00019899,2]
[362376471,1748229042762,-472.00428771,0.00019899,2]
[362376472,1748229042775,-420.0,0.00019899,2]
[362376473,1748229042785,-456.45267036,0.00019899,2]
[362376474,1748229042796,-420.0,0.00019899,2]
[362376475,1748229042809,-420.0,0.00019899,2]
[362376476,1748229042820,-420.0,0.00019899,2]
[362376477,1748229042832,-362.9430395,0.00019899,2]
[362376478,1748229042844,-420.0,0.00019899,2]
[362376479,1748229042855,-420.0,0.00019899,2]
[362376480,1748229042867,-420.0,0.00019899,2]
[362376481,1748229042878,-420.0,0.00019899,2]
[362376482,1748229042889,-420.0,0.00019899,2]
[362376483,1748229042901,-420.0,0.00019899,2]
[362376484,1748229042914,-1061.32799592,0.000199,2]
[362376485,1748229042930,-4738.67200408,0.000199,2]
[362376486,1748229042944,-509.55629332,0.000199,2]
[362376487,1748229042956,-4687.60081599,0.000199,2]
[362376488,1748229042968,-183.023,0.000199,2]
[362376489,1748229042979,-250000.0,0.000199,2]
[362376490,1748229042990,-800.0,0.000199,7]
[362376491,1748229043000,-200.0947593,0.000199,2]
[362376492,1748229043012,-2894.14119205,0.000199,2]
[362376493,1748229043024,-2894.14119191,0.000199,2]
[362376494,1748229043034,-2894.14119191,0.000199,2]
[362376495,1748229043046,-2894.14119191,0.000199,2]
[362376496,1748229043059,-2894.14119191,0.000199,2]
[362376497,1748229043070,-505.90661849,0.000199,2]
[362376498,1748229043080,-2894.14119191,0.000199,2]
[362376499,1748229043091,-3607.578192,0.000199,2]
[362376500,1748229043101,-2894.14119191,0.000199,2]
[362376501,1748229043112,-2894.14119191,0.000199,2]
[362376502,1748229043122,-2894.14119191,0.000199,2]
[362376503,1748229043134,-2894.14119191,0.000199,2]
[362376504,1748229043145,-2894.14119191,0.000199,2]
[362376505,1748229043155,-2894.14119191,0.000199,2]
[362376506,1748229043165,-2894.14119191,0.000199,2]
[362376507,1748229043175,-2894.14119191,0.000199,2]
[362376508,1748229043186,-2894.14119191,0.000199,2]
[362376509,1748229043196,-207.93152928,0.000199,2]
[362376510,1748229043209,-152.87,0.00019969,2]
[362376511,1748229043220,-152.01,0.00019969,2]
[362376512,1748229043231,-150.63,0.00019969,2]
[362376513,1748229043241,-500.0,0.0001997,2]
[362376514,1748229043252,-1000.0,0.0001997,2]
[362376515,1748229043263,-500.0,0.0001997,2]
[362376516,1748229043273,-1000.0,0.0001997,2]
[362376517,1748229043283,-1002.02872275,0.0001997,2]
[362376518,1748229043294,-501.07281634,0.0001997,2]
[362376519,1748229043304,-1000.0,0.0001997,2]
[362376520,1748229043315,-500.0,0.0001997,2]
[362376521,1748229043326,-420.0,0.00019972,2]
[362376522,1748229043336,-476.66428966,0.00019972,2]
[362376523,1748229043347,-420.0,0.00019972,2]
[362376524,1748229043357,-420.0,0.00019972,2]
[362376525,1748229043368,-400.0,0.00019972,2]
[362376526,1748229043378,-420.0,0.00019972,2]
[362376527,1748229043389,-420.0,0.00019972,2]
[362376528,1748229043399,-420.0,0.00019972,2]
[362376529,1748229043410,-420.0,0.00019972,2]
[362376530,1748229043420,-468.33746096,0.00019972,2]
[362376531,1748229043431,-420.0,0.00019972,2]
[362376532,1748229043441,-466.10392764,0.00019972,2]
[362376533,1748229043452,-472.39844073,0.00019972,2]
[362376534,1748229043463,-457.8777064,0.00019972,2]
[362376535,1748229043473,-453.63764405,0.00019972,2]
[362376536,1748229043483,-420.0,0.00019972,2]
[362376537,1748229043494,-450.76092007,0.00019972,2]
[362376538,1748229043514,-501.4890513,0.00019973,2]
[362376539,1748229043524,-337.0,0.00019973,2]
[362376540,1748229043535,-500.0,0.00019973,2]
[362376541,1748229043546,-500.0,0.00019973,2]
[362376542,1748229043556,-500.0,0.00019973,2]
[362376543,1748229043567,-500.0,0.00019973,2]
[362376544,1748229043578,-500.0,0.00019973,2]
[362376545,1748229043589,-500.0,0.00019973,2]
[362376546,1748229043600,-500.0,0.00019973,2]
[362376547,1748229043610,-500.0,0.00019973,2]
[362376548,1748229043621,-500.0,0.00019973,2]
[362376549,1748229043631,-500.0,0.00019973,2]
[362376550,1748229043642,-500.99118054,0.00019973,2]
[362376551,1748229043652,-500.0,0.00019973,2]
[362376552,1748229043663,-469.99,0.0001998,2]
[362376553,1748229043674,-470.0,0.0001998,2]
[362376554,1748229043685,-198.92292003,0.0001999,2]
[362376555,1748229043696,-420.0,0.00019993,2]
[362376556,1748229043706,-420.0,0.00019993,2]
[362376557,1748229043717,-163.61241614,0.00019994,2]
[362376558,1748229043727,-420.0,0.00019994,2]
[362376559,1748229043738,-287.20770338,0.00019994,2]
[362376560,1748229043749,-420.0,0.00019994,2]
[362376561,1748229043759,-420.0,0.00019994,2]
[362376562,1748229043770,-420.0,0.00019994,2]
[362376563,1748229043781,-239.85505777,0.00019994,2]
[362376564,1748229043793,-420.0,0.00019994,2]
[362376565,1748229043804,-420.0,0.00019994,2]
[362376566,1748229043816,-420.0,0.00019994,2]
[362376567,1748229043828,-440.34767498,0.00019994,2]
[362376568,1748229043840,-420.0,0.00019994,2]
[362376569,1748229043852,-260.43541268,0.00019994,2]
[362376570,1748229043865,-420.0,0.00019994,2]
[362376571,1748229043878,-321.1046068,0.00019994,2]
[362376572,1748229043890,-420.0,0.00019994,2]
[362376573,1748229043901,-465.9341198,0.00019994,2]
[362376574,1748229043914,-500.0,0.00019994,2]
[362376575,1748229043926,-420.0,0.00019994,2]
[362376576,1748229043936,-420.0,0.00019994,2]
[362376577,1748229043949,-420.0,0.00019994,2]
[362376578,1748229043961,-162.14689788,0.00019994,2]
[362376579,1748229043973,-193.61403849,0.00019994,2]
[362376580,1748229043986,-420.0,0.00019994,2]
[362376581,1748229043999,-420.0,0.00019994,2]
[362376582,1748229044013,-420.0,0.00019994,2]
[362376583,1748229044025,-420.0,0.00019994,2]
[362376584,1748229044035,-420.0,0.00019994,2]
[362376585,1748229044047,-420.0,0.00019994,2]
[362376586,1748229044058,-420.0,0.00019994,2]
[362376587,1748229044070,-420.0,0.00019994,2]
[362376588,1748229044081,-420.0,0.00019994,2]
[362376589,1748229044094,-420.0,0.00019994,2]
[362376590,1748229044106,-420.0,0.00019994,2]
[362376591,1748229044118,-420.0,0.00019994,2]
[362376592,1748229044131,-464.3593573,0.00019994,2]
[362376593,1748229044143,-16216.3283107,0.00019995,2]
[362376594,1748229044154,-3170.0049719,0.00019995,2]
[362376595,1748229044165,-1234.3955989,0.00019995,2]
[362376596,1748229044176,-79230.5934173,0.00019995,2]
[362376597,1748229044187,-944.9313122,0.00019995,2]
[362376598,1748229044198,-8514.6580178,0.00019995,2]
[362376599,1748229044210,-422.57493356,0.00019999,2]
[362376600,1748229044220,-422.35752885,0.00019999,2]
[362376601,1748229044231,-420.0,0.00019999,2]
[362376602,1748229044242,-420.0,0.00019999,2]
[362376603,1748229044253,-471.184771,0.00019999,2]
[362376604,1748229044264,-420.0,0.00019999,2]
[362376605,1748229044276,-151.58001089,0.00019999,2]
[362376606,1748229044288,-377.14,0.00019999,2]
[362376607,1748229044301,-180.15499721,0.00019999,2]
[362376608,1748229044312,-184.29186443,0.00019999,2]
[362376609,1748229044323,-506.13191197,0.00019999,2]
[362376610,1748229044337,-218.78,0.00019999,2]
[362376611,1748229044349,-152.33990979,0.00019999,2]
[362376612,1748229044361,-420.0,0.00019999,2]
[362376613,1748229044373,-420.0,0.00019999,2]
[362376614,1748229044384,-422.98,0.00019999,2]
[362376615,1748229044395,-493.34871102,0.00019999,2]
[362376616,1748229044406,-462.87748787,0.00019999,2]
[362376617,1748229044417,-420.0,0.00019999,2]
[362376618,1748229044428,-420.0,0.00019999,2]
[362376619,1748229044441,-492.32,0.00019999,2]
[362376620,1748229044452,-469.9902195,0.00019999,2]
[362376621,1748229044463,-444.53,0.00019999,2]
[362376622,1748229044474,-472.25593893,0.00019999,2]
[362376623,1748229044484,-420.0,0.00019999,2]
[362376624,1748229044495,-469.38024664,0.00019999,2]
[362376625,1748229044504,-420.0,0.00019999,2]
[362376626,1748229044514,-457.79451109,0.00019999,2]
[362376627,1748229044523,-451.75273861,0.00019999,2]
[362376628,1748229044533,-420.0,0.00019999,2]
[362376629,1748229044543,-420.0,0.00019999,2]
[362376630,1748229044554,-217.55134112,0.00019999,2]
[362376631,1748229044565,-28965.25452195,0.0002,2]
[362376632,1748229044574,-1312.0,0.0002,2]
[362376633,1748229044585,-800.0,0.0002,2]
[362376634,1748229044595,-633.0,0.0002,2]
[362376635,1748229044606,-1463.0,0.0002,2]
[362376636,1748229044616,-555.0,0.0002,2]
[362376637,1748229044625,-923.0,0.0002,2]
[362376638,1748229044635,-587.0,0.0002,2]
[362376639,1748229044645,-762582.18279082,0.0002,2]
[362376640,1748229044658,-9407.19625015,0.0002,2]
[362376641,1748229044675,-924.5589717,0.0002,2]
[362376645,1748229044969,-124494.75075305,0.0002,2]
[362376646,1748229044985,-8792.04323723,0.0002,2]
[362376647,1748229044997,-1240.82250756,0.0002,2]
[362376648,1748229045009,-2164.215192,0.0002,2]
[362376649,1748229045218,-305.8127437,0.00018941,2]
[362376650,1748229045238,-152.7472563,0.00018941,2]
[362376651,1748229045247,-1153.0,0.00019649,2]
[362376652,1748229045257,-17044.41736966,0.0001973,2]
[362376653,1748229045267,-12770.41609135,0.00019817,2]
[362376654,1748229045276,-2894.14119191,0.000199,2]
[362376655,1748229045286,-241.24219763,0.000199,2]
[362376656,1748229045295,-15833.44624226,0.0002,2]
[362376657,1748229045310,-24984.78367853,0.0002,2]
[362376658,1748229045321,-383.20020393,0.0002,2]
[362376659,1748229045342,-10293.67113826,0.0002,2]
[362376660,1748229045353,-15410.17562609,0.0002,2]
[362376661,1748229045364,-5919.6902379,0.0002,2]
[362376662,1748229045376,-516.04000001,0.0002,2]
[362376671,1748229046104,-2866.08229076,0.000199,2]
[362376672,1748229046116,-28.05890115,0.000199,2]
[362376673,1748229046126,-664.1114824,0.0002,2]
[362376674,1748229046180,-914.0642422,0.0002,2]
[362376675,1748229046191,-43072.99999999,0.0002,2]
[362376676,1748229046203,-723.73,0.0002,2]
[362376677,1748229046221,-2876.37209943,0.0002,2]
[362376678,1748229046234,-1517.30775226,0.0002,2]
[362376679,1748229046266,-7835.89411807,0.0002,2]
[362376680,1748229046320,-61820.09482718,0.0002,2]
[362376681,1748229046374,-1967.31364611,0.0002,2]
[362376682,1748229046428,-269.24704914,0.0002,2]
[362376683,1748229046441,-1826.56410682,0.0002,2]
[362376684,1748229046455,-378.43528873,0.0002,2]
[362376698,1748229571250,10000.0,0.00027397,120]
[362376699,1748229587855,568.0,0.00027397,120]
[362376701,1748229628088,250.0,0.00015,2]
[362376709,1748229922655,90.2123566,0.00016014,2]
[362376710,1748229922678,2000.0,0.00016014,2]
[362376711,1748229922701,2000.0,0.00016014,2]
[362376712,1748229922724,2000.0,0.00016014,2]
[362376713,1748229922749,2000.0,0.00016014,2]
[362376714,1748229922773,1909.7876434,0.00016014,2]
[362376715,1748229958258,90.2123566,0.00013699,2]
[362376716,1748229958286,263.5876434,0.00013699,2]
[362376717,1748230049829,-172.3427473,0.0001644,2]
[362376718,1748230051791,392.679,8.77e-06,7]
[362376719,1748230053498,-183.00360103,0.0001644,2]
[362376720,1748230056301,-286.49966863,0.0001644,2]
[362376721,1748230058324,-386.99,0.0001644,2]
[362376722,1748230059840,-152.0,0.0001644,2]
[362376723,1748230062121,-171.90880461,0.0001644,2]
[362376724,1748230063975,-46.49517843,0.0001644,2]
[362376725,1748230118446,150.0,0.000175,5]
[362376733,1748230232365,-300.0,0.00017,2]
[362376734,1748230232375,-250.0,0.00017053,2]
[362376735,1748230232388,-205.0,0.00017105,2]
[362376736,1748230232404,-150.0,0.00018311,7]
[362376737,1748230232414,-1000.0,0.00018326,2]
[362376738,1748230232425,-150.0,0.00018355,2]
[362376739,1748230232435,-366.05,0.00018683,2]
[362376740,1748230232444,-159.94,0.00018697,2]
[362376741,1748230232454,-250.0,0.000187,2]
[362376742,1748230232465,-1399.24,0.00018704,2]
[362376743,1748230232476,-159.57,0.00018713,2]
[362376744,1748230232488,-2751.0,0.00018768,2]
[362376745,1748230232498,-606.06,0.00018777,2]
[362376746,1748230232508,-367.00562593,0.0001882,2]
[362376747,1748230232519,-300.0,0.0001882,2]
[362376748,1748230232530,-1200.0,0.0001882,2]
[362376749,1748230232541,-17058.86205477,0.00018821,2]
[362376750,1748230232558,-6841.13794523,0.00018821,2]
[362376751,1748230232568,-17008.44619745,0.000189,3]
[362376752,1748230232577,-233.20079111,0.000189,2]
[362376753,1748230232587,-166.68,0.0001892,2]
[362376754,1748230232596,-200.0,0.00018958,2]
[362376755,1748230232606,-250.0,0.00018986,2]
[362376756,1748230232615,-152.0,0.00018996,3]
[362376757,1748230232624,-151.0,0.00018999,2]
[362376758,1748230232634,-207.4,0.00018999,2]
[362376759,1748230232643,-350.0,0.00019,2]
[362376760,1748230232653,-500.0,0.00019164,2]
[362376761,1748230232662,-600.0,0.00019164,2]
[362376762,1748230232671,-304.23852242,0.00019178,2]
[362376763,1748230232682,-436.75,0.00019178,2]
[362376766,1748230232692,-178.57,0.00019178,2]
[362376769,1748230232703,-200.0,0.000192,7]
[362376771,1748230232712,-502.0,0.0001926,2]
[362376773,1748230232721,-500.0,0.000193,7]
[362376775,1748230232731,-200.0,0.00019322,2]
[362376777,1748230232741,-800.0,0.000194,7]
[362376779,1748230232752,-233.2007909,0.00019452,2]
[362376780,1748230232761,-1000.0,0.000195,7]
[362376781,1748230232771,-806.13,0.00019589,2]
[362376782,1748230232781,-1612.26,0.00019589,2]
[362376783,1748230232790,-1612.13,0.00019589,2]
[362376784,1748230232800,-440.38,0.00019589,2]
[362376785,1748230232809,-805.83,0.00019589,2]
[362376786,1748230232820,-579.584138,0.00019599,2]
[362376787,1748230232831,-1300.0,0.000196,7]
[362376788,1748230232840,-1000.0,0.0001961,2]
[362376789,1748230232850,-7662.24965481,0.00019697,2]
[362376790,1748230232860,-200.0,0.000197,7]
[362376791,1748230232869,-7662.24965481,0.0001972,2]
[362376792,1748230232880,-150.46,0.00019726,2]
[362376793,1748230232889,-153.01,0.00019726,2]
[362376794,1748230232899,-150.46,0.00019726,2]
[362376795,1748230232908,-150.46,0.00019726,2]
[362376796,1748230232918,-420.0,0.00019731,2]
[362376797,1748230232928,-452.91986966,0.00019731,2]
[362376798,1748230232938,-420.0,0.00019731,2]
[362376799,1748230232948,-420.0,0.00019731,2]
[362376800,1748230232958,-7662.24965481,0.00019742,2]
[362376801,1748230232968,-7662.24965481,0.00019765,2]
[362376802,1748230232977,-155.85467173,0.00019773,2]
[362376803,1748230232987,-500.0,0.00019773,2]
[362376804,1748230232996,-500.0,0.00019773,2]
[362376805,1748230233005,-500.0,0.00019773,2]
[362376806,1748230233014,-159.35122355,0.00019773,2]
[362376807,1748230233023,-501.4890513,0.00019773,2]
[362376808,1748230233032,-500.0,0.00019773,2]
[362376809,1748230233042,-500.0,0.00019773,2]
[362376810,1748230233051,-500.0,0.00019773,2]
[362376811,1748230233060,-420.0,0.00019779,2]
[362376812,1748230233070,-420.0,0.00019779,2]
[362376813,1748230233080,-420.0,0.00019779,2]
[362376814,1748230233090,-365.17387638,0.00019779,2]
[362376815,1748230233100,-420.0,0.00019779,2]
[362376816,1748230233109,-511.93619673,0.00019779,2]
[362376817,1748230233119,-420.0,0.00019779,2]
[362376818,1748230233128,-420.0,0.00019779,2]
[362376819,1748230233137,-479.84289798,0.00019779,2]
[362376820,1748230233147,-420.0,0.00019779,2]
[362376821,1748230233156,-420.0,0.00019779,2]
[362376822,1748230233165,-420.0,0.00019779,2]
[362376823,1748230233174,-514.29251256,0.00019779,2]
[362376824,1748230233183,-531.28199367,0.00019779,2]
[362376825,1748230233193,-467.710409,0.00019779,2]
[362376826,1748230233203,-420.0,0.00019779,2]
[362376827,1748230233212,-424.01412796,0.00019779,2]
[362376828,1748230233221,-416.44097082,0.00019779,2]
[362376829,1748230233230,-420.0,0.00019779,2]
[362376830,1748230233239,-420.0,0.00019779,2]
[362376831,1748230233249,-425.44629625,0.00019779,2]
[362376832,1748230233258,-332.56594286,0.00019779,2]
[362376833,1748230233267,-420.0,0.00019779,2]
[362376834,1748230233276,-17720.876801,0.00019779,2]
[362376835,1748230233285,-434.74333314,0.00019779,2]
[362376836,1748230233295,-267.70033862,0.00019779,2]
[362376837,1748230233303,-448.13141547,0.00019779,2]
[362376838,1748230233313,-166.01312574,0.00019779,2]
[362376839,1748230233321,-174.54385508,0.00019779,2]
[362376840,1748230233330,-580.06768353,0.00019779,2]
[362376841,1748230233340,-500.0,0.00019779,2]
[362376842,1748230233349,-500.0,0.00019779,2]
[362376843,1748230233359,-500.0,0.00019779,2]
[362376844,1748230233368,-500.0,0.00019779,2]
[362376845,1748230233378,-500.0,0.00019779,2]
[362376846,1748230233388,-500.0,0.00019779,2]
[362376847,1748230233402,-500.0,0.00019779,2]
[362376848,1748230233411,-500.0,0.00019779,2]
[362376849,1748230233420,-500.0,0.00019779,2]
[362376850,1748230233430,-500.0,0.00019779,2]
[362376851,1748230233439,-500.0,0.00019779,2]
[362376852,1748230233448,-500.0,0.00019779,2]
[362376853,1748230233457,-500.0,0.00019779,2]
[362376854,1748230233466,-500.0,0.00019779,2]
[362376855,1748230233476,-500.0,0.00019779,2]
[362376856,1748230233485,-500.0,0.00019779,2]
[362376857,1748230233494,-500.0,0.00019779,2]
[362376858,1748230233504,-500.0,0.00019779,2]
[362376859,1748230233513,-500.0,0.00019779,2]
[362376860,1748230233522,-500.0,0.00019779,2]
[362376861,1748230233531,-500.0,0.00019779,2]
[362376862,1748230233540,-512.6190422,0.00019779,2]
[362376863,1748230233549,-512.6190422,0.00019779,2]
[362376864,1748230233559,-512.6190422,0.00019779,2]
[362376865,1748230233569,-512.6190422,0.00019779,2]
[362376866,1748230233578,-512.6190422,0.00019779,2]
[362376867,1748230233587,-512.6190422,0.00019779,2]
[362376868,1748230233596,-512.6190422,0.00019779,2]
[362376869,1748230233605,-35931.47938234,0.0001978,2]
[362376870,1748230233617,-6206.67993712,0.0001978,2]
[362376871,1748230233629,-1722.0821,0.0001978,2]
[362376872,1748230233640,-367.8080003,0.0001978,2]
[362376873,1748230238200,-420.0,0.00019779,2]
[362376874,1748230238209,-314.07,0.00019779,2]
[362376875,1748230238219,-21191.70815351,0.0001978,2]
[362376876,1748230238253,-1000.0,0.0001978,2]
[362376877,1748230238264,-492.50919716,0.0001978,2]
[362376878,1748230238275,-681.89753604,0.0001978,2]
[362376879,1748230238466,-602.021,0.0001978,2]
[362376880,1748230238521,-4838.37028936,0.0001978,2]
[362376894,1748230240371,-298.61171956,0.00019779,2]
[362376896,1748230240383,-126.42119246,0.00019779,2]
[362376898,1748230240396,-698.36126763,0.0001978,2]
[362376900,1748230240430,-84133.83785744,0.0001978,2]
[362376901,1748230240439,-16918.16869368,0.00019785,2]
[362376902,1748230240448,-7662.24965481,0.00019787,2]
[362376903,1748230240459,-1128.4513,0.00019797,2]
[362376904,1748230240470,-1000.0,0.00019797,2]
[362376905,1748230240483,-16918.16869365,0.00019798,2]
[362376906,1748230240492,-166.95834046,0.00019798,2]
[362376907,1748230240501,-726.8205,0.00019798,2]
[362376908,1748230240511,-1000.0,0.00019798,2]
[362376909,1748230240520,-1105.9364,0.00019798,2]
[362376910,1748230240530,-500.0,0.00019798,2]
[362376911,1748230240539,-120766.9966,0.00019799,2]
[362376912,1748230240548,-200.0,0.000198,7]
[362376913,1748230240557,-7662.24965481,0.0001981,2]
[362376914,1748230240566,-16918.16869365,0.00019811,2]
[362376915,1748230240575,-166.95834042,0.00019813,2]
[362376916,1748230240584,-324.73591646,0.00019818,2]
[362376917,1748230240594,-16918.16869365,0.00019823,2]
[362376918,1748230240604,-166.95834042,0.00019827,2]
[362376919,1748230240614,-7662.24965481,0.00019832,2]
[362376920,1748230240623,-500.0,0.00019836,2]
[362376921,1748230240633,-500.0,0.00019836,2]
[362376922,1748230240642,-150.0,0.00019836,2]
[362376923,1748230240651,-150.0,0.00019836,2]
[362376924,1748230240661,-16918.16869365,0.00019836,2]
[362376925,1748230240671,-200.0,0.0001984,2]
[362376926,1748230240681,-166.95834042,0.00019842,2]
[362376927,1748230240691,-324.73591646,0.00019845,2]
[362376928,1748230240700,-16918.16869365,0.00019849,2]
[362376929,1748230240709,-7662.24965481,0.00019855,2]
[362376930,1748230240719,-166.95834042,0.00019856,2]
[362376931,1748230240729,-16918.16869365,0.00019862,2]
[362376932,1748230240740,-500.0,0.00019863,2]
[362376933,1748230240750,-500.0,0.00019863,2]
[362376934,1748230240761,-150.0,0.00019863,2]
[362376935,1748230240771,-150.0,0.00019863,2]
[362376936,1748230240783,-166.95834042,0.00019871,2]
[362376937,1748230240792,-324.73591646,0.00019873,2]
[362376938,1748230240803,-500.0,0.00019873,2]
[362376939,1748230240813,-502.16293839,0.00019873,2]
[362376940,1748230240822,-500.0,0.00019873,2]
[362376941,1748230240833,-500.0,0.00019873,2]
[362376942,1748230240842,-500.0,0.00019873,2]
[362376943,1748230240854,-500.0,0.00019873,2]
[362376944,1748230240864,-500.99118054,0.00019873,2]
[362376945,1748230240874,-500.0,0.00019873,2]
[362376946,1748230240883,-500.0,0.00019873,2]
[362376947,1748230240893,-12500.0,0.00019874,2]
[362376948,1748230240903,-16918.16869365,0.00019874,2]
[362376949,1748230240913,-7662.24965481,0.00019877,2]
[362376950,1748230240923,-12500.0,0.00019882,2]
[362376951,1748230240934,-1204.539,0.00019883,2]
[362376952,1748230240944,-166.95834042,0.00019885,2]
[362376953,1748230240953,-183.023,0.0001989,2]
[362376954,1748230240962,-500.0,0.00019891,2]
[362376955,1748230240971,-500.0,0.00019891,2]
[362376956,1748230240981,-220.18686544,0.00019891,2]
[362376957,1748230240990,-150.0,0.00019891,2]
[362376958,1748230241000,-12500.0,0.00019891,2]
[362376959,1748230241009,-5000.0,0.00019894,2]
[362376960,1748230241018,-195.60040943,0.00019895,2]
[362376961,1748230241027,-168.63553951,0.00019895,2]
[362376962,1748230241037,-168.63553949,0.00019898,2]
[362376963,1748230241046,-421.98369075,0.00019898,2]
[362376964,1748230241057,-442.40884692,0.00019898,2]
[362376965,1748230241069,-282.22533264,0.00019898,2]
[362376966,1748230241079,-420.0,0.00019898,2]
[362376967,1748230241090,-500.0,0.00019898,2]
[362376968,1748230241101,-539.31543202,0.00019898,2]
[362376969,1748230241110,-500.0,0.00019898,2]
[362376970,1748230241121,-420.0,0.00019898,2]
[362376971,1748230241132,-420.0,0.00019898,2]
[362376972,1748230241142,-420.0,0.00019898,2]
[362376973,1748230241153,-420.0,0.00019898,2]
[362376974,1748230241164,-420.0,0.00019898,2]
[362376975,1748230241175,-420.0,0.00019898,2]
[362376976,1748230241187,-420.0,0.00019898,2]
[362376977,1748230241197,-420.0,0.00019898,2]
[362376978,1748230241208,-511.18172904,0.00019898,2]
[362376979,1748230241218,-511.61931578,0.00019898,2]
[362376980,1748230241228,-420.0,0.00019898,2]
[362376981,1748230241238,-420.0,0.00019898,2]
[362376982,1748230241249,-420.0,0.00019898,2]
[362376983,1748230241260,-420.0,0.00019898,2]
[362376984,1748230241270,-420.0,0.00019898,2]
[362376985,1748230241279,-420.0,0.00019898,2]
[362376986,1748230241289,-252.64,0.00019898,2]
[362376987,1748230241301,-420.0,0.00019898,2]
[362376988,1748230241311,-420.0,0.00019898,2]
[362376989,1748230241323,-420.0,0.00019898,2]
[362376990,1748230241333,-420.0,0.00019898,2]
[362376991,1748230241343,-420.0,0.00019898,2]
[362376992,1748230241356,-420.0,0.00019898,2]
[362376993,1748230241365,-420.0,0.00019898,2]
[362376994,1748230241376,-420.0,0.00019898,2]
[362376995,1748230241386,-420.0,0.00019898,2]
[362376996,1748230241397,-420.0,0.00019898,2]
[362376997,1748230241407,-235.24,0.00019898,2]
[362376998,1748230241417,-422.57493356,0.00019898,2]
[362376999,1748230241428,-420.0,0.00019898,2]
[362377000,1748230241437,-420.0,0.00019898,2]
[362377001,1748230241447,-420.0,0.00019898,2]
[362377002,1748230241457,-420.0,0.00019899,2]
[362377003,1748230241467,-420.0,0.00019899,2]
[362377004,1748230241476,-420.0,0.00019899,2]
[362377005,1748230241485,-420.0,0.00019899,2]
[362377006,1748230241495,-216.84,0.00019899,2]
[362377007,1748230241504,-464.3593573,0.00019899,2]
[362377008,1748230241513,-420.0,0.00019899,2]
[362377009,1748230241524,-420.0,0.00019899,2]